[Event "Early-Titled-Tuesday-Blitz-July-09-2024"]
[Site "Chess.com"]
[Date "2024.07.09"]
[Round "1"]
[White "Meri-Arabidze"]
[Black "maroro07"]
[Result "1-0"]
[WhiteElo "2701"]
[BlackElo "2383"]
[TimeControl "180+1"]
[EndTime "8:05:12 PDT"]
[Termination "Meri-Arabidze won by resignation"]

1. d4 {[%clk 0:03:00.9]} 1... d5 {[%clk 0:02:56.6]} 2. c4 {[%clk 0:03:00.7]}
2... e6 {[%clk 0:02:56.9]} 3. Nc3 {[%clk 0:03:00.9]} 3... Nf6 {[%clk 0:02:54.6]}
4. cxd5 {[%clk 0:02:58.1]} 4... exd5 {[%clk 0:02:54.4]} 5. Bg5 {[%clk
0:02:58.4]} 5... Be7 {[%clk 0:02:52.3]} 6. e3 {[%clk 0:02:58.8]} 6... h6 {[%clk
0:02:52.3]} 7. Bh4 {[%clk 0:02:58.3]} 7... O-O {[%clk 0:02:52]} 8. Bd3 {[%clk
0:02:58.8]} 8... b6 {[%clk 0:02:52.1]} 9. Nf3 {[%clk 0:02:56.1]} 9... Bb7 {[%clk
0:02:52.3]} 10. O-O {[%clk 0:02:55.9]} 10... Ne4 {[%clk 0:02:51.6]} 11. Bg3
{[%clk 0:02:55.7]} 11... Nd7 {[%clk 0:02:45.3]} 12. Qc2 {[%clk 0:02:53.9]} 12...
Nxg3 {[%clk 0:02:24.7]} 13. hxg3 {[%clk 0:02:54.8]} 13... c5 {[%clk 0:02:23.2]}
14. Rad1 {[%clk 0:02:55.3]} 14... Rc8 {[%clk 0:02:22.4]} 15. Bf5 {[%clk
0:02:54.5]} 15... c4 {[%clk 0:02:06.7]} 16. Ne5 {[%clk 0:02:53.1]} 16... Nxe5
{[%clk 0:01:16.4]} 17. Bxc8 {[%clk 0:02:52.1]} 17... Qxc8 {[%clk 0:01:17.3]} 18.
dxe5 {[%clk 0:02:52.3]} 18... Qe6 {[%clk 0:01:17.4]} 19. Qd2 {[%clk 0:02:36.1]}
19... Rd8 {[%clk 0:01:13.1]} 20. Qd4 {[%clk 0:02:35.9]} 20... Bc5 {[%clk
0:01:09]} 21. Qf4 {[%clk 0:02:35.9]} 21... a6 {[%clk 0:01:05.8]} 22. Ne2 {[%clk
0:02:34.1]} 22... b5 {[%clk 0:00:59.3]} 23. Nd4 {[%clk 0:02:34]} 23... Qb6
{[%clk 0:00:40.3]} 24. a3 {[%clk 0:02:29.7]} 24... a5 {[%clk 0:00:40.2]} 25. g4
{[%clk 0:02:20]} 25... Be7 {[%clk 0:00:24.7]} 26. Nf5 {[%clk 0:02:17.1]} 26...
Bg5 {[%clk 0:00:24.7]} 27. Qg3 {[%clk 0:02:05.2]} 27... g6 {[%clk 0:00:19]} 28.
f4 {[%clk 0:02:05.2]} 28... gxf5 {[%clk 0:00:17.3]} 29. fxg5 {[%clk 0:02:05.5]}
29... fxg4 {[%clk 0:00:16.1]} 30. Rf6 {[%clk 0:02:00.5]} 30... Qc5 {[%clk
0:00:15.6]} 31. gxh6 {[%clk 0:01:58.2]} 31... d4 {[%clk 0:00:14.3]} 32. Qxg4+
{[%clk 0:01:57.9]} 32... Kf8 {[%clk 0:00:13.1]} 33. Qg7+ {[%clk 0:01:57.7]} 1-0

[Event "Early-Titled-Tuesday-Blitz-July-09-2024"]
[Site "Chess.com"]
[Date "2024.07.09"]
[Round "1"]
[White "Sychev_Klementy"]
[Black "Kotofeyca"]
[Result "1-0"]
[WhiteElo "2946"]
[BlackElo "2510"]
[TimeControl "180+1"]
[EndTime "8:05:13 PDT"]
[Termination "Sychev_Klementy won by checkmate"]

1. e4 {[%clk 0:03:00.9]} 1... c5 {[%clk 0:02:55.6]} 2. Nf3 {[%clk 0:02:59.8]}
2... d6 {[%clk 0:02:55.5]} 3. d4 {[%clk 0:02:58.5]} 3... cxd4 {[%clk 0:02:56.4]}
4. Nxd4 {[%clk 0:02:57.8]} 4... Nf6 {[%clk 0:02:56.9]} 5. Nc3 {[%clk 0:02:58.3]}
5... a6 {[%clk 0:02:57]} 6. Bg5 {[%clk 0:02:58.1]} 6... e6 {[%clk 0:02:57.2]} 7.
f4 {[%clk 0:02:55.9]} 7... Qb6 {[%clk 0:02:57]} 8. Qd2 {[%clk 0:02:41.7]} 8...
Nc6 {[%clk 0:02:55.7]} 9. Bxf6 {[%clk 0:02:37.9]} 9... gxf6 {[%clk 0:02:54.7]}
10. Nb3 {[%clk 0:02:38.1]} 10... Be7 {[%clk 0:02:50.9]} 11. O-O-O {[%clk
0:02:37.6]} 11... Bd7 {[%clk 0:02:46.9]} 12. Be2 {[%clk 0:02:37.1]} 12... h5
{[%clk 0:02:46.9]} 13. Rhf1 {[%clk 0:02:36.8]} 13... O-O-O {[%clk 0:02:45.1]}
14. Rf3 {[%clk 0:02:36.5]} 14... h4 {[%clk 0:02:39.6]} 15. Bf1 {[%clk
0:02:34.8]} 15... Kb8 {[%clk 0:02:37]} 16. Qe1 {[%clk 0:02:32.3]} 16... Na5
{[%clk 0:02:25.7]} 17. Nd5 {[%clk 0:02:17.1]} 17... exd5 {[%clk 0:02:03.8]} 18.
Nxa5 {[%clk 0:02:15.9]} 18... Bc8 {[%clk 0:00:24.1]} 19. exd5 {[%clk 0:02:03.4]}
19... Qc7 {[%clk 0:00:20.2]} 20. Rc3 {[%clk 0:01:48.1]} 20... Qd7 {[%clk
0:00:20]} 21. Bxa6 {[%clk 0:01:48]} 21... bxa6 {[%clk 0:00:18.1]} 22. Nc6+
{[%clk 0:01:47.5]} 22... Ka8 {[%clk 0:00:17.2]} 23. Qf2 {[%clk 0:01:33.6]} 23...
Bb7 {[%clk 0:00:15]} 24. Qa7# {[%clk 0:01:32.7]} 1-0

[Event "Early-Titled-Tuesday-Blitz-July-09-2024"]
[Site "Chess.com"]
[Date "2024.07.09"]
[Round "1"]
[White "Alex_Sahakyan2006"]
[Black "rionelG"]
[Result "1-0"]
[WhiteElo "2739"]
[BlackElo "2412"]
[TimeControl "180+1"]
[EndTime "8:05:22 PDT"]
[Termination "Alex_Sahakyan2006 won by checkmate"]

1. e4 {[%clk 0:03:00.9]} 1... c5 {[%clk 0:02:50.3]} 2. Nc3 {[%clk 0:02:59]} 2...
d6 {[%clk 0:02:46.3]} 3. Nf3 {[%clk 0:02:58.1]} 3... Nf6 {[%clk 0:02:44.8]} 4.
e5 {[%clk 0:02:56.6]} 4... dxe5 {[%clk 0:02:44.1]} 5. Nxe5 {[%clk 0:02:57.5]}
5... Nbd7 {[%clk 0:02:39.7]} 6. Nc4 {[%clk 0:02:57.5]} 6... a6 {[%clk
0:02:29.1]} 7. a4 {[%clk 0:02:55.8]} 7... e6 {[%clk 0:02:28]} 8. g3 {[%clk
0:02:55.7]} 8... Be7 {[%clk 0:02:25.6]} 9. Bg2 {[%clk 0:02:55.6]} 9... O-O
{[%clk 0:02:21.5]} 10. O-O {[%clk 0:02:55.8]} 10... Qc7 {[%clk 0:02:16.1]} 11.
d3 {[%clk 0:02:54.2]} 11... Nb6 {[%clk 0:01:45.6]} 12. Bf4 {[%clk 0:02:37.8]}
12... Qd8 {[%clk 0:01:41]} 13. Nxb6 {[%clk 0:02:37.3]} 13... Qxb6 {[%clk
0:01:40.3]} 14. a5 {[%clk 0:02:38.2]} 14... Qd8 {[%clk 0:01:39]} 15. Qf3 {[%clk
0:02:23.2]} 15... h6 {[%clk 0:01:20.9]} 16. Rfe1 {[%clk 0:02:18.7]} 16... Bd6
{[%clk 0:01:20.7]} 17. Be5 {[%clk 0:01:53.9]} 17... Bxe5 {[%clk 0:01:09.8]} 18.
Rxe5 {[%clk 0:01:54.8]} 18... Qc7 {[%clk 0:01:09.3]} 19. Qe3 {[%clk 0:01:52.8]}
19... Nd7 {[%clk 0:01:02.1]} 20. Rh5 {[%clk 0:01:51.7]} 20... Rb8 {[%clk
0:00:45]} 21. Ra4 {[%clk 0:01:45.8]} 21... Qd8 {[%clk 0:00:17.2]} 22. Rg4 {[%clk
0:01:27.5]} 22... Nf6 {[%clk 0:00:14.5]} 23. Rxg7+ {[%clk 0:01:27.5]} 23... Kxg7
{[%clk 0:00:14.1]} 24. Qxh6+ {[%clk 0:01:28.4]} 24... Kg8 {[%clk 0:00:13.4]} 25.
Qh8# {[%clk 0:01:29.3]} 1-0

[Event "Early-Titled-Tuesday-Blitz-July-09-2024"]
[Site "Chess.com"]
[Date "2024.07.09"]
[Round "1"]
[White "Makswolf200817"]
[Black "InitiatingASC"]
[Result "1-0"]
[WhiteElo "2770"]
[BlackElo "2423"]
[TimeControl "180+1"]
[EndTime "8:05:23 PDT"]
[Termination "Makswolf200817 won by resignation"]

1. d4 {[%clk 0:03:00.9]} 1... d5 {[%clk 0:02:59.5]} 2. c4 {[%clk 0:02:53.2]}
2... e6 {[%clk 0:02:58]} 3. Nf3 {[%clk 0:02:53.2]} 3... a6 {[%clk 0:02:57]} 4.
Bg5 {[%clk 0:02:47]} 4... Be7 {[%clk 0:02:56.1]} 5. Bxe7 {[%clk 0:02:45.5]} 5...
Nxe7 {[%clk 0:02:55.5]} 6. e3 {[%clk 0:02:44.8]} 6... Nd7 {[%clk 0:02:55.1]} 7.
Nc3 {[%clk 0:02:42.9]} 7... Nf6 {[%clk 0:02:55.2]} 8. Bd3 {[%clk 0:02:34.2]}
8... O-O {[%clk 0:02:53.6]} 9. O-O {[%clk 0:02:33.9]} 9... c6 {[%clk 0:02:42.6]}
10. e4 {[%clk 0:02:30.3]} 10... dxe4 {[%clk 0:02:38.1]} 11. Nxe4 {[%clk
0:02:30.3]} 11... Ng6 {[%clk 0:02:34.5]} 12. Re1 {[%clk 0:02:21.1]} 12... Nxe4
{[%clk 0:02:30.1]} 13. Bxe4 {[%clk 0:02:17.1]} 13... Qf6 {[%clk 0:02:29.4]} 14.
Qd2 {[%clk 0:02:08.8]} 14... Bd7 {[%clk 0:02:29.3]} 15. Qa5 {[%clk 0:02:07.9]}
15... Rad8 {[%clk 0:02:26.7]} 16. Rad1 {[%clk 0:02:07.1]} 16... Bc8 {[%clk
0:02:26.9]} 17. g3 {[%clk 0:01:56]} 17... Rd6 {[%clk 0:02:16.1]} 18. Kg2 {[%clk
0:01:50.5]} 18... Rfd8 {[%clk 0:02:15.8]} 19. h4 {[%clk 0:01:49.6]} 19... Ne7
{[%clk 0:01:47.6]} 20. Ng5 {[%clk 0:01:38.4]} 20... Nf5 {[%clk 0:01:36.8]} 21.
d5 {[%clk 0:01:19]} 21... h6 {[%clk 0:01:31.3]} 22. Nf3 {[%clk 0:01:16]} 22...
exd5 {[%clk 0:01:27.2]} 23. cxd5 {[%clk 0:01:16.1]} 23... cxd5 {[%clk
0:01:24.2]} 24. Rxd5 {[%clk 0:01:15]} 24... Rxd5 {[%clk 0:01:15.8]} 25. Bxd5
{[%clk 0:01:15.1]} 25... Nd6 {[%clk 0:01:04.1]} 26. Qb6 {[%clk 0:01:05.9]} 26...
Bg4 {[%clk 0:00:57.7]} 27. Ne5 {[%clk 0:01:04.7]} 27... Re8 {[%clk 0:00:47.9]}
28. Nxg4 {[%clk 0:01:03.2]} 1-0

[Event "Early-Titled-Tuesday-Blitz-July-09-2024"]
[Site "Chess.com"]
[Date "2024.07.09"]
[Round "1"]
[White "RCone"]
[Black "sofaceindisguise"]
[Result "0-1"]
[WhiteElo "2423"]
[BlackElo "2770"]
[TimeControl "180+1"]
[EndTime "8:05:24 PDT"]
[Termination "sofaceindisguise won by resignation"]

1. e4 {[%clk 0:02:59.7]} 1... c5 {[%clk 0:02:59.2]} 2. Nc3 {[%clk 0:02:58.3]}
2... d6 {[%clk 0:02:59.9]} 3. f4 {[%clk 0:02:57.6]} 3... e6 {[%clk 0:02:59.1]}
4. Nf3 {[%clk 0:02:56.8]} 4... a6 {[%clk 0:02:59.4]} 5. d4 {[%clk 0:02:53.9]}
5... cxd4 {[%clk 0:03:00.3]} 6. Nxd4 {[%clk 0:02:52.9]} 6... Qc7 {[%clk
0:03:00.9]} 7. Bd3 {[%clk 0:02:51.3]} 7... Nf6 {[%clk 0:02:59]} 8. O-O {[%clk
0:02:43.9]} 8... Nbd7 {[%clk 0:02:56.4]} 9. Kh1 {[%clk 0:02:42.5]} 9... b5
{[%clk 0:02:52.4]} 10. a3 {[%clk 0:02:34.7]} 10... Bb7 {[%clk 0:02:52.4]} 11.
Be3 {[%clk 0:02:30.2]} 11... h5 {[%clk 0:02:47.8]} 12. Qf3 {[%clk 0:02:26.2]}
12... Nb6 {[%clk 0:02:31.7]} 13. Rae1 {[%clk 0:02:24]} 13... Nc4 {[%clk
0:02:32.1]} 14. Bxc4 {[%clk 0:02:19.9]} 14... Qxc4 {[%clk 0:02:31.5]} 15. Bg1
{[%clk 0:02:11.2]} 15... Be7 {[%clk 0:02:28.9]} 16. Qg3 {[%clk 0:02:05.3]} 16...
g6 {[%clk 0:02:13]} 17. f5 {[%clk 0:02:02.3]} 17... e5 {[%clk 0:02:10]} 18. Nb3
{[%clk 0:02:01.6]} 18... h4 {[%clk 0:02:09.3]} 19. Qf3 {[%clk 0:01:53.5]} 19...
g5 {[%clk 0:02:01.2]} 20. Na5 {[%clk 0:01:52.7]} 20... Qc8 {[%clk 0:02:01.1]}
21. Nxb7 {[%clk 0:01:53.3]} 21... Qxb7 {[%clk 0:02:02]} 22. h3 {[%clk
0:01:46.1]} 22... Rc8 {[%clk 0:02:02]} 23. Rd1 {[%clk 0:01:45.9]} 23... Rxc3
{[%clk 0:01:58.7]} 24. Qxc3 {[%clk 0:01:44.7]} 24... Nxe4 {[%clk 0:01:57.8]} 25.
Qd3 {[%clk 0:01:24.9]} 25... Ng3+ {[%clk 0:01:57.3]} 26. Kh2 {[%clk 0:01:25.8]}
26... Nxf1+ {[%clk 0:01:57.2]} 27. Rxf1 {[%clk 0:01:26.6]} 27... f6 {[%clk
0:01:56.9]} 28. Rd1 {[%clk 0:01:24.9]} 28... Qc6 {[%clk 0:01:49.6]} 29. b3
{[%clk 0:01:23.2]} 29... Kd7 {[%clk 0:01:42.7]} 30. c4 {[%clk 0:01:23.6]} 30...
bxc4 {[%clk 0:01:42.6]} 31. bxc4 {[%clk 0:01:24.5]} 31... Rd8 {[%clk 0:01:29.2]}
32. c5 {[%clk 0:01:18.1]} 32... d5 {[%clk 0:01:29.5]} 33. Qxd5+ {[%clk
0:01:15.3]} 33... Qxd5 {[%clk 0:01:27]} 34. Rxd5+ {[%clk 0:01:16.2]} 34... Kc6
{[%clk 0:01:27.9]} 35. Rxd8 {[%clk 0:01:16.7]} 35... Bxd8 {[%clk 0:01:28.8]} 36.
g3 {[%clk 0:01:15.8]} 36... hxg3+ {[%clk 0:01:25.6]} 37. Kxg3 {[%clk 0:01:16.7]}
37... Be7 {[%clk 0:01:25.8]} 38. h4 {[%clk 0:01:13.4]} 38... gxh4+ {[%clk
0:01:23.4]} 39. Kxh4 {[%clk 0:01:14.3]} 39... Bxc5 {[%clk 0:01:23.7]} 40. Bxc5
{[%clk 0:01:14.5]} 40... Kxc5 {[%clk 0:01:24.6]} 41. Kh5 {[%clk 0:01:14.3]}
41... e4 {[%clk 0:01:24.3]} 42. Kg6 {[%clk 0:01:15.2]} 42... e3 {[%clk
0:01:24.8]} 43. Kxf6 {[%clk 0:01:16.1]} 43... e2 {[%clk 0:01:25.7]} 44. Kg7
{[%clk 0:01:16.6]} 44... e1=Q {[%clk 0:01:26.6]} 45. f6 {[%clk 0:01:17.5]} 45...
Qe5 {[%clk 0:01:26.7]} 46. Kg6 {[%clk 0:01:16.1]} 46... Kd6 {[%clk 0:01:26.9]}
47. f7 {[%clk 0:01:16.7]} 47... Ke7 {[%clk 0:01:27.5]} 48. f8=Q+ {[%clk
0:01:17.2]} 48... Kxf8 {[%clk 0:01:27.6]} 0-1

[Event "Early-Titled-Tuesday-Blitz-July-09-2024"]
[Site "Chess.com"]
[Date "2024.07.09"]
[Round "1"]
[White "Barmen_EV"]
[Black "Hikaru"]
[Result "0-1"]
[WhiteElo "2539"]
[BlackElo "3230"]
[TimeControl "180+1"]
[EndTime "8:05:29 PDT"]
[Termination "Hikaru won by resignation"]

1. e4 {[%clk 0:02:53.3]} 1... g6 {[%clk 0:02:54.4]} 2. d4 {[%clk 0:02:52.9]}
2... c6 {[%clk 0:02:53.9]} 3. Nc3 {[%clk 0:02:40.8]} 3... d5 {[%clk 0:02:53.9]}
4. e5 {[%clk 0:02:41.2]} 4... a6 {[%clk 0:02:52.8]} 5. h4 {[%clk 0:02:40.1]}
5... h5 {[%clk 0:02:52.5]} 6. Be2 {[%clk 0:02:39.2]} 6... Nh6 {[%clk 0:02:51.6]}
7. Bg5 {[%clk 0:02:38.8]} 7... Nf5 {[%clk 0:02:49.3]} 8. Nf3 {[%clk 0:02:39.2]}
8... Bg7 {[%clk 0:02:44.8]} 9. Qd2 {[%clk 0:02:38.2]} 9... Nd7 {[%clk
0:02:44.7]} 10. e6 {[%clk 0:02:35.4]} 10... fxe6 {[%clk 0:02:44.3]} 11. O-O-O
{[%clk 0:02:35.7]} 11... c5 {[%clk 0:02:38.1]} 12. dxc5 {[%clk 0:02:17.4]} 12...
Qa5 {[%clk 0:02:36]} 13. Kb1 {[%clk 0:01:22.7]} 13... Bxc3 {[%clk 0:02:34.3]}
14. Qxc3 {[%clk 0:01:23.6]} 14... Qxc3 {[%clk 0:02:34.4]} 15. bxc3 {[%clk
0:01:24.5]} 15... Nxc5 {[%clk 0:02:35.2]} 16. Ne5 {[%clk 0:01:22.9]} 16... Ne4
{[%clk 0:02:28.6]} 17. Nxg6 {[%clk 0:01:02.8]} 17... Rh7 {[%clk 0:02:28.8]} 18.
g4 {[%clk 0:00:40.8]} 18... hxg4 {[%clk 0:02:19.6]} 19. Bxg4 {[%clk 0:00:41.7]}
19... Nxf2 {[%clk 0:02:20]} 20. Rdf1 {[%clk 0:00:22.5]} 20... Nxg4 {[%clk
0:02:19.2]} 21. Rhg1 {[%clk 0:00:18]} 21... Nf6 {[%clk 0:02:13.2]} 22. Ne5
{[%clk 0:00:15]} 22... Nd7 {[%clk 0:02:12.9]} 23. Ng6 {[%clk 0:00:09.5]} 23...
Nb6 {[%clk 0:02:12.9]} 24. Bc1 {[%clk 0:00:05.6]} 24... Nc4 {[%clk 0:02:12.2]}
25. Rf4 {[%clk 0:00:04.1]} 25... b5 {[%clk 0:02:09.2]} 26. Rfg4 {[%clk 0:00:04]}
26... Bb7 {[%clk 0:02:06.1]} 27. Nf4 {[%clk 0:00:03.1]} 27... Kd7 {[%clk
0:02:06]} 28. h5 {[%clk 0:00:02.5]} 28... e5 {[%clk 0:02:00.4]} 29. Ng6 {[%clk
0:00:02.5]} 29... Rxh5 {[%clk 0:01:59.4]} 30. a4 {[%clk 0:00:01.8]} 30... Nfd6
{[%clk 0:01:58.4]} 31. Rg5 {[%clk 0:00:01.5]} 31... Rxg5 {[%clk 0:01:58.3]} 32.
Rxg5 {[%clk 0:00:01.6]} 32... Ne4 {[%clk 0:01:59.1]} 33. Nxe5+ {[%clk
0:00:01.6]} 33... Ke6 {[%clk 0:01:59.7]} 34. Nxc4 {[%clk 0:00:01.7]} 34... Nxg5
{[%clk 0:01:59.9]} 35. Nb6 {[%clk 0:00:02.4]} 35... Rg8 {[%clk 0:01:55.1]} 36.
Bxg5 {[%clk 0:00:02.8]} 0-1

[Event "Early-Titled-Tuesday-Blitz-July-09-2024"]
[Site "Chess.com"]
[Date "2024.07.09"]
[Round "1"]
[White "ValeriyGrinev"]
[Black "kyawmyataung2005"]
[Result "1-0"]
[WhiteElo "2663"]
[BlackElo "2349"]
[TimeControl "180+1"]
[EndTime "8:05:29 PDT"]
[Termination "ValeriyGrinev won on time"]

1. d4 {[%clk 0:02:59.1]} 1... Nf6 {[%clk 0:02:48.5]} 2. c4 {[%clk 0:02:57.7]}
2... e6 {[%clk 0:02:47.2]} 3. Nf3 {[%clk 0:02:57.2]} 3... d5 {[%clk 0:02:31.8]}
4. e3 {[%clk 0:02:56.6]} 4... Be7 {[%clk 0:02:29.8]} 5. Nbd2 {[%clk 0:02:56.4]}
5... O-O {[%clk 0:02:29.6]} 6. Bd3 {[%clk 0:02:56.3]} 6... Nbd7 {[%clk
0:02:28.5]} 7. O-O {[%clk 0:02:54.5]} 7... c5 {[%clk 0:02:28]} 8. b3 {[%clk
0:02:53.1]} 8... b6 {[%clk 0:02:27]} 9. Bb2 {[%clk 0:02:52.2]} 9... Bb7 {[%clk
0:02:27]} 10. Qe2 {[%clk 0:02:51.9]} 10... Ne4 {[%clk 0:02:22.9]} 11. cxd5
{[%clk 0:02:48.4]} 11... exd5 {[%clk 0:02:22.7]} 12. Rac1 {[%clk 0:02:47.9]}
12... Rc8 {[%clk 0:02:19.5]} 13. Rfd1 {[%clk 0:02:47.1]} 13... Bd6 {[%clk
0:02:17.4]} 14. dxc5 {[%clk 0:02:46.1]} 14... bxc5 {[%clk 0:02:16.9]} 15. Ba6
{[%clk 0:02:45.6]} 15... Bxa6 {[%clk 0:01:17.8]} 16. Qxa6 {[%clk 0:02:40.4]}
16... Nxd2 {[%clk 0:01:17.9]} 17. Rxd2 {[%clk 0:02:36.6]} 17... Nb6 {[%clk
0:01:18.3]} 18. a4 {[%clk 0:02:27.4]} 18... Rc7 {[%clk 0:01:01.5]} 19. a5 {[%clk
0:02:25.2]} 19... Nc8 {[%clk 0:01:01.8]} 20. Rcd1 {[%clk 0:02:22.3]} 20... Ne7
{[%clk 0:01:01.6]} 21. e4 {[%clk 0:02:15.3]} 21... Rc6 {[%clk 0:00:33.6]} 22.
Qxa7 {[%clk 0:02:11.8]} 22... d4 {[%clk 0:00:33.7]} 23. b4 {[%clk 0:02:08.9]}
23... Bf4 {[%clk 0:00:23.7]} 24. Rd3 {[%clk 0:02:02.3]} 24... Bb8 {[%clk
0:00:12.7]} 25. Qb7 {[%clk 0:01:57.5]} 25... cxb4 {[%clk 0:00:13.3]} 26. Rxd4
{[%clk 0:01:43.4]} 1-0

[Event "Early-Titled-Tuesday-Blitz-July-09-2024"]
[Site "Chess.com"]
[Date "2024.07.09"]
[Round "1"]
[White "Hongjin"]
[Black "chessmachine14"]
[Result "1-0"]
[WhiteElo "2602"]
[BlackElo "2251"]
[TimeControl "180+1"]
[EndTime "8:05:32 PDT"]
[Termination "Hongjin won on time"]

1. e4 {[%clk 0:02:58.4]} 1... c5 {[%clk 0:02:51]} 2. Be2 {[%clk 0:02:57.8]} 2...
Nc6 {[%clk 0:02:45.9]} 3. f4 {[%clk 0:02:57.4]} 3... d5 {[%clk 0:02:45.6]} 4. d3
{[%clk 0:02:57.2]} 4... dxe4 {[%clk 0:02:43.4]} 5. dxe4 {[%clk 0:02:58.1]} 5...
Qxd1+ {[%clk 0:02:43.5]} 6. Bxd1 {[%clk 0:02:59]} 6... e5 {[%clk 0:02:38.4]} 7.
fxe5 {[%clk 0:02:59.4]} 7... Nxe5 {[%clk 0:02:37.9]} 8. Nf3 {[%clk 0:02:59.8]}
8... Nxf3+ {[%clk 0:02:35.9]} 9. gxf3 {[%clk 0:03:00.7]} 9... Be6 {[%clk
0:02:34]} 10. c3 {[%clk 0:02:59.6]} 10... O-O-O {[%clk 0:02:33.3]} 11. Be3
{[%clk 0:02:58.6]} 11... Nf6 {[%clk 0:02:30.6]} 12. Na3 {[%clk 0:02:57]} 12...
h6 {[%clk 0:02:17.8]} 13. Bb3 {[%clk 0:02:53.6]} 13... g5 {[%clk 0:02:15.2]} 14.
Bxe6+ {[%clk 0:02:48.3]} 14... fxe6 {[%clk 0:02:15.1]} 15. Nc4 {[%clk
0:02:49.2]} 15... Nd7 {[%clk 0:02:09]} 16. a4 {[%clk 0:02:46.2]} 16... b6 {[%clk
0:01:50.1]} 17. h4 {[%clk 0:02:38.2]} 17... Be7 {[%clk 0:01:46.3]} 18. hxg5
{[%clk 0:02:38.5]} 18... hxg5 {[%clk 0:01:44.9]} 19. Ke2 {[%clk 0:02:39]} 19...
Nf6 {[%clk 0:01:25.5]} 20. Bxg5 {[%clk 0:02:33.1]} 20... Rhg8 {[%clk 0:01:25.4]}
21. Bxf6 {[%clk 0:02:29.8]} 21... Bxf6 {[%clk 0:01:25.5]} 22. Rag1 {[%clk
0:02:28.5]} 22... Rxg1 {[%clk 0:01:22.5]} 23. Rxg1 {[%clk 0:02:28.1]} 23... Rh8
{[%clk 0:01:23.1]} 24. Rg6 {[%clk 0:02:27.9]} 24... Rh2+ {[%clk 0:01:21.7]} 25.
Kd3 {[%clk 0:02:26.3]} 25... Be7 {[%clk 0:01:01.6]} 26. Rxe6 {[%clk 0:02:25.7]}
26... Kd7 {[%clk 0:01:02.3]} 27. Rg6 {[%clk 0:02:25.3]} 27... Rf2 {[%clk
0:01:00.3]} 28. Ke3 {[%clk 0:02:24.8]} 28... Rf1 {[%clk 0:00:56.6]} 29. Ne5+
{[%clk 0:02:24]} 29... Kc7 {[%clk 0:00:49.9]} 30. Rg7 {[%clk 0:02:23.6]} 30...
Kd6 {[%clk 0:00:49.8]} 31. Nc4+ {[%clk 0:02:18.9]} 31... Ke6 {[%clk 0:00:48.3]}
32. f4 {[%clk 0:02:18.9]} 32... Kf6 {[%clk 0:00:12.3]} 33. Rh7 {[%clk
0:02:18.1]} 33... Re1+ {[%clk 0:00:10.6]} 34. Kf3 {[%clk 0:02:16.7]} 34... Rf1+
{[%clk 0:00:10.4]} 35. Kg3 {[%clk 0:02:14.7]} 35... Re1 {[%clk 0:00:10.7]} 36.
e5+ {[%clk 0:02:11.5]} 36... Ke6 {[%clk 0:00:10.1]} 37. f5+ {[%clk 0:02:11.4]}
37... Kd5 {[%clk 0:00:09.4]} 38. Rxe7 {[%clk 0:02:11.7]} 38... Kxc4 {[%clk
0:00:09.6]} 39. f6 {[%clk 0:02:12.3]} 39... Kd5 {[%clk 0:00:09.9]} 40. f7 {[%clk
0:02:12.4]} 40... Rf1 {[%clk 0:00:09.7]} 41. e6 {[%clk 0:02:12.8]} 1-0

[Event "Early-Titled-Tuesday-Blitz-July-09-2024"]
[Site "Chess.com"]
[Date "2024.07.09"]
[Round "1"]
[White "Sofia_Blokhin"]
[Black "xakevicius91"]
[Result "0-1"]
[WhiteElo "2201"]
[BlackElo "2590"]
[TimeControl "180+1"]
[EndTime "8:05:34 PDT"]
[Termination "xakevicius91 won by checkmate"]

1. d4 {[%clk 0:03:00.9]} 1... Nf6 {[%clk 0:03:00]} 2. c4 {[%clk 0:03:00.5]} 2...
e6 {[%clk 0:02:59.9]} 3. Nc3 {[%clk 0:03:00.4]} 3... Bb4 {[%clk 0:02:59.8]} 4.
e3 {[%clk 0:03:00.6]} 4... O-O {[%clk 0:03:00]} 5. Bd3 {[%clk 0:02:59.2]} 5...
c5 {[%clk 0:02:59]} 6. Nf3 {[%clk 0:02:57.9]} 6... Nc6 {[%clk 0:02:59.5]} 7. O-O
{[%clk 0:02:56.4]} 7... Bxc3 {[%clk 0:02:59.9]} 8. bxc3 {[%clk 0:02:49.1]} 8...
d6 {[%clk 0:03:00.1]} 9. e4 {[%clk 0:02:41.5]} 9... e5 {[%clk 0:02:59.7]} 10. d5
{[%clk 0:02:38.5]} 10... Ne7 {[%clk 0:02:59.9]} 11. Bg5 {[%clk 0:02:35.4]} 11...
Ng6 {[%clk 0:02:59.6]} 12. Nh4 {[%clk 0:02:21.9]} 12... h6 {[%clk 0:02:54.5]}
13. Nxg6 {[%clk 0:02:16.2]} 13... fxg6 {[%clk 0:02:55.4]} 14. Bh4 {[%clk
0:01:54.9]} 14... g5 {[%clk 0:02:48]} 15. Bg3 {[%clk 0:01:54.6]} 15... Qe8
{[%clk 0:02:47.3]} 16. h3 {[%clk 0:01:48.4]} 16... Nh5 {[%clk 0:02:45.6]} 17.
Bh2 {[%clk 0:01:47.6]} 17... Nf4 {[%clk 0:02:45.7]} 18. Bxf4 {[%clk 0:01:41.1]}
18... gxf4 {[%clk 0:02:46.6]} 19. Be2 {[%clk 0:01:38.3]} 19... Qg6 {[%clk
0:02:43]} 20. Qd3 {[%clk 0:01:26.7]} 20... h5 {[%clk 0:02:21.1]} 21. Kh2 {[%clk
0:01:23.7]} 21... Bd7 {[%clk 0:02:19.9]} 22. Rab1 {[%clk 0:01:15.6]} 22... b6
{[%clk 0:02:20.2]} 23. Rbe1 {[%clk 0:01:14.2]} 23... Qg5 {[%clk 0:02:19.9]} 24.
Bf3 {[%clk 0:01:09]} 24... Rf6 {[%clk 0:02:19.3]} 25. Qe2 {[%clk 0:01:00.2]}
25... g6 {[%clk 0:02:18.6]} 26. g3 {[%clk 0:00:50.5]} 26... Raf8 {[%clk
0:02:15.4]} 27. h4 {[%clk 0:00:44]} 27... Qh6 {[%clk 0:02:10.4]} 28. Kg2 {[%clk
0:00:37.3]} 28... g5 {[%clk 0:02:08.1]} 29. hxg5 {[%clk 0:00:30.6]} 29... Qxg5
{[%clk 0:02:09]} 30. Rh1 {[%clk 0:00:25]} 30... Bg4 {[%clk 0:02:07.7]} 31. Bxg4
{[%clk 0:00:18.4]} 31... hxg4 {[%clk 0:02:08.6]} 32. Kg1 {[%clk 0:00:15.5]}
32... fxg3 {[%clk 0:02:04.6]} 33. fxg3 {[%clk 0:00:15.2]} 33... Rf2 {[%clk
0:02:05.2]} 34. Qxf2 {[%clk 0:00:14.4]} 34... Rxf2 {[%clk 0:02:06.1]} 35. Kxf2
{[%clk 0:00:15]} 35... Qd2+ {[%clk 0:02:06.8]} 36. Re2 {[%clk 0:00:15.2]} 36...
Qxc3 {[%clk 0:02:07.1]} 37. Kf1 {[%clk 0:00:13]} 37... Qxc4 {[%clk 0:02:05.8]}
38. Kf2 {[%clk 0:00:09.9]} 38... Qd4+ {[%clk 0:02:05.2]} 39. Kf1 {[%clk
0:00:09.5]} 39... Qd1+ {[%clk 0:02:05.2]} 40. Re1 {[%clk 0:00:08.7]} 40... Qf3+
{[%clk 0:02:05.2]} 41. Kg1 {[%clk 0:00:09]} 41... Qxg3+ {[%clk 0:02:05.6]} 42.
Kf1 {[%clk 0:00:09.5]} 42... Qf3+ {[%clk 0:02:06.1]} 43. Kg1 {[%clk 0:00:09.9]}
43... c4 {[%clk 0:02:06.4]} 44. Rf1 {[%clk 0:00:08.9]} 44... Qg3# {[%clk
0:02:06.5]} 0-1